[Event "1st Lasker Memorial GM 2019"]
[Site "Anogia"]
[Date "2019.09.13"]
[Round "3.2"]
[White "Delchev, Aleksander"]
[Black "Beerdsen, Thomas"]
[Result "1-0"]
[ECO "A80"]
[WhiteElo "2568"]
[BlackElo "2482"]
[Annotator "ChessBase"]
[PlyCount "81"]
[EventDate "2019.09.11"]
[EventType "tourn"]
[EventCountry "GRE"]
[SourceTitle "playchess.com"]
[Source "ChessBase"]
[SourceQuality "1"]
[TimeControl "40/5400+30:1800+30"]

1. d4 {[%emt 0:02:36]} f5 {[%emt 0:00:00]} 2. Bg5 {[%emt 0:02:48]} h6 {[%emt 0:00:00]} 3. Bh4 {[%emt 0:00:22]} g5 {[%emt 0:00:00]} 4. e3 {[%emt 0:01:03]} Nf6 {[%emt 0:00:00]} 5. Bg3 {[%emt 0:00:16]} d6 {[%emt 0:00:00]} 6. h4 {[%emt 0:00:14]} Rg8 {[%emt 0:00:00]} 7. hxg5 {[%emt 0:00:07]} hxg5 {[%emt 0:00:03]} 8. Nc3 {[%emt 0:00:17]} e6 {[%emt 0:00:40]} 9. Qd2 {[%emt 0:06:43]} Qe7 {[%emt 0:01:24]} 10. f3 {[%emt 0:00:17]} Nc6 {[%emt 0:04:02]} 11. O-O-O {[%emt 0:02:27]} Bd7 {[%emt 0:03:26]} 12. e4 {[%emt 0:02:41]} f4 {[%emt 0:14:38]} 13. Bf2 {[%emt 0:00:03]} a6 {[%emt 0:01:31]} 14. Nge2 {[%emt 0:05:02]} Bg7 {[%emt 0:10:31]} 15. g3 {[%emt 0:21:01]} e5 {[%emt 0:13:33]} 16. gxf4 {[%emt 0:10:16]} gxf4 {[%emt 0:03:46]} 17. dxe5 {[%emt 0:16:58]} Nxe5 {[%emt 0:06:44]} 18. Nxf4 {[%emt 0:03:11]} O-O-O {[%emt 0:03:53]} 19. Qe3 {[%emt 0:05:47]} c5 {[%emt 0:04:50]} 20. Be2 {[%emt 0:07:41]} Bc6 {[%emt 0:01:40]} 21. Nfd5 {[%emt 0:04:39]} Qf7 {[%emt 0:00:37]} 22. Bh4 {[%emt 0:01:25]} Bxd5 {[%emt 0:01:58]} 23. exd5 {[%emt 0:01:00]} Rde8 {[%emt 0:01:48]} 24. Qd2 {[%emt 0:00:39]} Nh5 {[%emt 0:03:30]} 25. Ne4 {[%emt 0:00:33]} Kc7 {[%emt 0:01:21]} 26. Bg5 {[%emt 0:00:34]} Nxf3 {[%emt 0:04:11]} 27. Qa5+ {[%emt 0:01:08]} b6 {[%emt 0:09:09]} 28. Qxa6 {[%emt 0:01:07]} Ra8 {[%emt 0:01:27]} 29. Qb7+ {[%emt 0:02:12]} Kxb7 {[%emt 0:00:05]} 30. Nxd6+ {[%emt 0:00:02]} Kc7 {[%emt 0:01:34]} 31. Nxf7 {[%emt 0:00:04]} Nxg5 {[%emt 0:00:19]} 32. d6+ {[%emt 0:00:30]} Kd7 {[%emt 0:01:48]} 33. Bb5+ {[%emt 0:00:32]} Kc8 {[%emt 0:00:16]} 34. d7+ {[%emt 0:01:06]} Kc7 {[%emt 0:00:04]} 35. Nxg5 {[%emt 0:00:11]} Bxb2+ {[%emt 0:01:12]} 36. Kxb2 {[%emt 0:00:03]} Rxg5 {[%emt 0:00:05]} 37. Rhe1 {[%emt 0:00:07]} Rd8 {[%emt 0:01:10]} 38. Re6 {[%emt 0:00:04]} Nf4 {[%emt 0:02:08]} 39. Rc6+ {[%emt 0:00:04]} Kb7 {[%emt 0:00:03]} 40. Rdd6 {[%emt 0:00:00]} Nd5 {[%emt 0:00:00]} 41. Rc8 {[%emt 0:01:14]} 1-0

[Event "1st Lasker Memorial GM 2019"]
[Site "Anogia"]
[Date "2019.09.13"]
[Round "3.4"]
[White "Colijn, Stefan"]
[Black "Nikolaidis, Ioannis"]
[Result "1/2-1/2"]
[ECO "D04"]
[WhiteElo "2329"]
[BlackElo "2530"]
[Annotator "ChessBase"]
[PlyCount "82"]
[EventDate "2019.09.11"]
[EventType "tourn"]
[EventCountry "GRE"]
[SourceTitle "playchess.com"]
[Source "ChessBase"]
[SourceQuality "1"]
[TimeControl "40/5400+30:1800+30"]

1. d4 {[%emt 0:00:00]} Nf6 {[%emt 0:00:12]} 2. Nf3 {[%emt 0:00:00]} d5 {[%emt 0:00:48]} 3. e3 {[%emt 0:00:00]} c5 {[%emt 0:01:40]} 4. b3 {[%emt 0:03:16]} cxd4 {[%emt 0:00:30]} 5. exd4 {[%emt 0:00:17]} Nc6 {[%emt 0:00:11]} 6. c3 {[%emt 0:01:52]} Bg4 {[%emt 0:02:57]} 7. h3 {[%emt 0:01:39]} Bh5 {[%emt 0:00:12]} 8. Be2 {[%emt 0:01:43]} e6 {[%emt 0:00:20]} 9. O-O {[%emt 0:02:45]} Qc7 {[%emt 0:06:56]} 10. Nbd2 {[%emt 0:04:28]} Bd6 {[%emt 0:00:41]} 11. Re1 {[%emt 0:00:15]} Bg6 {[%emt 0:06:01]} 12. Bb2 {[%emt 0:07:21]} h6 {[%emt 0:02:36]} 13. c4 {[%emt 0:16:46]} O-O {[%emt 0:02:11]} 14. c5 {[%emt 0:02:41]} Bf4 {[%emt 0:08:52]} 15. a3 {[%emt 0:02:26]} a5 {[%emt 0:00:09]} 16. Nf1 {[%emt 0:00:54]} Qe7 {[%emt 0:03:12]} 17. Bd3 {[%emt 0:07:45]} Ne4 {[%emt 0:03:19]} 18. Qc2 {[%emt 0:01:16]} f5 {[%emt 0:07:53]} 19. Bc3 {[%emt 0:04:46]} Bh5 {[%emt 0:02:25]} 20. Be2 {[%emt 0:03:53]} Qf6 {[%emt 0:08:10]} 21. Rad1 {[%emt 0:05:58]} g5 {[%emt 0:03:01]} 22. Ba1 {[%emt 0:07:38]} g4 {[%emt 0:06:40]} 23. N3h2 {[%emt 0:04:04]} Qg7 {[%emt 0:11:04]} 24. Rd3 {[%emt 0:01:30]} Bg6 {[%emt 0:01:44]} 25. Bd1 {[%emt 0:04:30]} h5 {[%emt 0:02:49]} 26. Kh1 {[%emt 0:00:10]} Bh7 {[%emt 0:05:23]} 27. Qb2 {[%emt 0:05:14]} Bc7 {[%emt 0:02:03]} 28. f3 {[%emt 0:00:40]} g3 {[%emt 0:01:14]} 29. fxe4 {[%emt 0:01:36]} fxe4 {[%emt 0:00:29]} 30. Rd2 {[%emt 0:00:50]} gxh2 {[%emt 0:02:54]} 31. Bxh5 {[%emt 0:00:05]} Rf6 {[%emt 0:04:36]} 32. Qc1 {[%emt 0:05:32]} Bf4 {[%emt 0:01:38]} 33. Bg4 {[%emt 0:00:23]} Qh6 {[%emt 0:01:19]} 34. Bc3 {[%emt 0:00:30]} Raf8 {[%emt 0:00:22]} 35. Qd1 {[%emt 0:00:27]} Bxd2 {[%emt 0:00:20]} 36. Bxd2 {[%emt 0:00:05]} Qg7 {[%emt 0:01:05]} 37. Ng3 {[%emt 0:00:15]} Bg6 {[%emt 0:00:43]} 38. Bg5 {[%emt 0:00:25]} Rf5 {[%emt 0:00:46]} 39. Be3 {[%emt 0:00:36]} R5f6 {[%emt 0:00:36]} 40. Bg5 {[%emt 0:00:00]} Rf5 {[%emt 0:00:00]} 41. Be3 {[%emt 0:00:33]} Qf6 {[%emt 0:01:32]} 1/2-1/2

[Event "1st Lasker Memorial GM 2019"]
[Site "Anogia"]
[Date "2019.09.13"]
[Round "3.5"]
[White "Alexakis, Georgios"]
[Black "Alexakis, Dimitrios"]
[Result "0-1"]
[ECO "A25"]
[WhiteElo "2175"]
[BlackElo "2077"]
[Annotator "NA"]
[PlyCount "62"]
[EventDate "2019.09.11"]
[EventType "tourn"]
[EventCountry "GRE"]
[SourceTitle "playchess.com"]
[Source "ChessBase"]
[SourceQuality "1"]
[TimeControl "40/5400+30:1800+30"]

1. c4 {[%emt 0:03:31]} e5 {[%emt 0:04:06]} 2. g3 {[%emt 0:00:26]} Nc6 {[%emt 0:00:07]} 3. Bg2 {[%emt 0:00:59]} f5 {[%emt 0:00:41]} 4. Nc3 {[%emt 0:02:05]} Nf6 {[%emt 0:00:11]} 5. d3 {[%emt 0:02:02]} Be7 {[%emt 0:00:09]} 6. Nf3 {[%emt 0:02:20]} O-O {[%emt 0:02:02]} 7. O-O {[%emt 0:02:24]} Qe8 {[%emt 0:00:23]} 8. e3 {[%emt 0:01:20]} d6 {[%emt 0:00:11]} 9. a3 {[%emt 0:02:51]} h6 {[%emt 0:01:28]} 10. b4 {[%emt 0:02:27]} g5 {[%emt 0:01:15]} 11. b5 {[%emt 0:01:33]} Nd8 {[%emt 0:00:27]} 12. a4 {[%emt 0:04:02]} Ne6 {[%emt 0:00:43]} 13. Nd5 {[%emt 0:02:55]} Bd8 {[%emt 0:01:31]} 14. Bb2 {[%emt 0:04:00]} Nh5 {[%emt 0:02:21]} 15. e4 {[%emt 0:03:35]} g4 {[%emt 0:06:06]} 16. Nd2 {[%emt 0:01:37]} f4 {[%emt 0:00:22]} 17. Re1 {[%emt 0:03:25]} c6 {[%emt 0:00:18]} 18. bxc6 {[%emt 0:04:27]} bxc6 {[%emt 0:00:07]} 19. d4 {[%emt 0:04:11]} cxd5 {[%emt 0:02:40]} 20. exd5 {[%emt 0:00:16]} Ng5 {[%emt 0:00:09]} 21. Ne4 {[%emt 0:03:12]} f3 {[%emt 0:12:46]} 22. Nxg5 {[%emt 0:01:19]} Bxg5 {[%emt 0:00:29]} 23. dxe5 {[%emt 0:01:31]} fxg2 {[%emt 0:00:15]} 24. exd6 {[%emt 0:00:16]} Qf7 {[%emt 0:00:15]} 25. Re2 {[%emt 0:00:36]} Bf5 {[%emt 0:00:51]} 26. c5 {[%emt 0:00:52]} Rae8 {[%emt 0:02:04]} 27. Rxe8 {[%emt 0:00:32]} Qxe8 {[%emt 0:00:38]} 28. c6 {[%emt 0:00:14]} Nf6 {[%emt 0:01:55]} 29. d7 {[%emt 0:00:16]} Nxd7 {[%emt 0:00:27]} 30. cxd7 {[%emt 0:00:04]} Qxd7 {[%emt 0:00:13]} 31. Qd4 {[%emt 0:00:44]} Bf6 {[%emt 0:00:20]} 0-1

[Event "1st Lasker Memorial GM 2019"]
[Site "Anogia"]
[Date "2019.09.14"]
[Round "4.1"]
[White "Avramidou, Anastasia"]
[Black "Bronstein, Or"]
[Result "1/2-1/2"]
[ECO "B31"]
[WhiteElo "2249"]
[BlackElo "2404"]
[Annotator "NA"]
[PlyCount "51"]
[EventDate "2019.09.11"]
[EventType "tourn"]
[EventCountry "GRE"]
[SourceTitle "playchess.com"]
[Source "ChessBase"]
[SourceQuality "1"]
[TimeControl "40/5400+30:1800+30"]

1. e4 {[%emt 0:04:15]} c5 {[%emt 0:00:00]} 2. Be2 {[%emt 0:00:07]} Nc6 {[%emt 0:04:38]} 3. f4 {[%emt 0:00:14]} g6 {[%emt 0:02:14]} 4. Nf3 {[%emt 0:00:14]} d5 {[%emt 0:01:33]} 5. d3 {[%emt 0:00:12]} Nf6 {[%emt 0:03:07]} 6. e5 {[%emt 0:00:37]} Nh5 {[%emt 0:04:47]} 7. O-O {[%emt 0:06:33]} Bh6 {[%emt 0:06:23]} 8. Ne1 {[%emt 0:24:17]} Ng7 {[%emt 0:02:13]} 9. c3 {[%emt 0:00:20]} f6 {[%emt 0:05:31]} 10. Na3 {[%emt 0:08:27]} O-O {[%emt 0:05:30]} 11. Nf3 {[%emt 0:02:15]} a6 {[%emt 0:05:53]} 12. Nc2 {[%emt 0:02:06]} d4 {[%emt 0:03:00]} 13. Bd2 {[%emt 0:10:49]} b6 {[%emt 0:05:28]} 14. Qe1 {[%emt 0:05:45]} Qd7 {[%emt 0:07:59]} 15. Qh4 {[%emt 0:09:22]} Nf5 {[%emt 0:00:40]} 16. Qh3 {[%emt 0:00:06]} Bg7 {[%emt 0:07:27]} 17. g4 {[%emt 0:05:15]} Ne3 {[%emt 0:02:21]} 18. Bxe3 {[%emt 0:00:31]} dxe3 {[%emt 0:00:13]} 19. Nxe3 {[%emt 0:00:04]} e6 {[%emt 0:04:49]} 20. exf6 {[%emt 0:01:04]} Bxf6 {[%emt 0:00:15]} 21. Ng5 {[%emt 0:00:17]} Bxg5 {[%emt 0:07:39]} 22. fxg5 {[%emt 0:00:08]} Bb7 {[%emt 0:00:03]} 23. Rxf8+ {[%emt 0:02:11]} Rxf8 {[%emt 0:00:02]} 24. Rf1 {[%emt 0:00:07]} Rxf1+ {[%emt 0:03:12]} 25. Qxf1 {[%emt 0:00:07]} Ne5 {[%emt 0:00:38]} 26. Qf6 {[%emt 0:03:02]} 1/2-1/2

[Event "1st Lasker Memorial GM 2019"]
[Site "Anogia"]
[Date "2019.09.14"]
[Round "4.2"]
[White "Colijn, Stefan"]
[Black "Delchev, Aleksander"]
[Result "1-0"]
[ECO "B13"]
[WhiteElo "2329"]
[BlackElo "2568"]
[Annotator "ChessBase"]
[PlyCount "93"]
[EventDate "2019.09.11"]
[EventType "tourn"]
[EventCountry "GRE"]
[SourceTitle "playchess.com"]
[Source "ChessBase"]
[SourceQuality "1"]
[TimeControl "40/5400+30:1800+30"]

1. e4 c6 {[%emt 0:03:11]} 2. d4 {[%emt 0:01:23]} d5 {[%emt 0:00:05]} 3. exd5 {[%emt 0:00:18]} cxd5 {[%emt 0:00:04]} 4. Bd3 {[%emt 0:00:23]} Nc6 {[%emt 0:00:14]} 5. c3 {[%emt 0:00:08]} e6 {[%emt 0:00:05]} 6. Bf4 {[%emt 0:00:54]} Bd6 {[%emt 0:00:08]} 7. Bxd6 {[%emt 0:00:22]} Qxd6 {[%emt 0:00:04]} 8. Qg4 {[%emt 0:00:33]} g6 {[%emt 0:07:10]} 9. Qg3 {[%emt 0:01:08]} Qxg3 {[%emt 0:08:07]} 10. hxg3 {[%emt 0:00:07]} Nf6 {[%emt 0:00:38]} 11. Nf3 {[%emt 0:10:45]} Bd7 {[%emt 0:00:05]} 12. Nbd2 {[%emt 0:00:46]} Ke7 {[%emt 0:00:17]} 13. Ne5 {[%emt 0:10:20]} h5 {[%emt 0:07:56]} 14. f4 Rag8 {[%emt 0:10:57]} 15. Ndf3 {[%emt 0:15:40]} Ne4 {[%emt 0:02:25]} 16. Bxe4 {[%emt 0:00:54]} dxe4 {[%emt 0:00:08]} 17. Ng5 {[%emt 0:00:24]} f6 {[%emt 0:02:25]} 18. Nxd7 {[%emt 0:04:08]} fxg5 {[%emt 0:00:10]} 19. Nc5 {[%emt 0:00:07]} h4 {[%emt 0:01:43]} 20. Nxe4 {[%emt 0:15:31]} hxg3 {[%emt 0:00:14]} 21. O-O {[%emt 0:01:49]} gxf4 {[%emt 0:07:34]} 22. Rxf4 {[%emt 0:00:23]} e5 {[%emt 0:01:24]} 23. dxe5 {[%emt 0:00:53]} Rf8 {[%emt 0:12:45]} 24. Rg4 {[%emt 0:06:44]} Nxe5 {[%emt 0:00:34]} 25. Rxg3 {[%emt 0:00:11]} Rf4 {[%emt 0:02:51]} 26. Re1 {[%emt 0:00:50]} Rfh4 {[%emt 0:05:35]} 27. Nf2 {[%emt 0:01:48]} Kd6 {[%emt 0:02:32]} 28. Rge3 {[%emt 0:02:11]} R8h5 {[%emt 0:03:15]} 29. g3 {[%emt 0:03:30]} Ra4 {[%emt 0:00:18]} 30. R1e2 {[%emt 0:12:50]} Rf5 {[%emt 0:06:36]} 31. b3 {[%emt 0:02:43]} Ra5 {[%emt 0:00:01]} 32. Kg2 {[%emt 0:00:49]} Rd5 {[%emt 0:01:13]} 33. Re4 {[%emt 0:01:19]} b5 {[%emt 0:00:47]} 34. a4 {[%emt 0:02:03]} a6 {[%emt 0:01:01]} 35. axb5 {[%emt 0:00:58]} axb5 {[%emt 0:00:01]} 36. Ra2 {[%emt 0:00:14]} Kc7 {[%emt 0:03:22]} 37. g4 {[%emt 0:00:52]} Rf6 {[%emt 0:03:13]} 38. Rae2 {[%emt 0:02:27]} Nd3 {[%emt 0:06:26]} 39. Nxd3 {[%emt 0:01:59]} Rxd3 {[%emt 0:00:01]} 40. R2e3 {[%emt 0:00:00]} Rfd6 {[%emt 0:00:00]} 41. Kf3 {[%emt 0:05:19]} Rd1 {[%emt 0:05:58]} 42. Kf4 {[%emt 0:00:26]} Rb1 {[%emt 0:00:05]} 43. Rb4 {[%emt 0:00:43]} Rd5 {[%emt 0:01:13]} 44. Re5 {[%emt 0:01:47]} Rd3 {[%emt 0:01:54]} 45. Rc5+ {[%emt 0:02:03]} Kd6 {[%emt 0:00:04]} 46. Rcxb5 {[%emt 0:00:16]} Rxc3 {[%emt 0:00:05]} 47. Kg5 {[%emt 0:00:28]} 1-0

[Event "1st Lasker Memorial GM 2019"]
[Site "Anogia"]
[Date "2019.09.14"]
[Round "4.3"]
[White "Alexakis, Georgios"]
[Black "Hristodoulou, Panagiotis"]
[Result "0-1"]
[ECO "D00"]
[WhiteElo "2175"]
[BlackElo "2280"]
[Annotator "NA"]
[PlyCount "78"]
[EventDate "2019.09.11"]
[EventType "tourn"]
[EventCountry "GRE"]
[SourceTitle "playchess.com"]
[Source "ChessBase"]
[SourceQuality "1"]
[TimeControl "40/5400+30:1800+30"]

1. d4 {[%emt 0:01:41]} d5 {[%emt 0:00:00]} 2. Bf4 {[%emt 0:00:39]} c5 {[%emt 0:00:00]} 3. e3 {[%emt 0:01:03]} Nc6 {[%emt 0:00:00]} 4. c3 {[%emt 0:04:44]} Bf5 {[%emt 0:00:16]} 5. Nf3 {[%emt 0:05:05]} Qb6 {[%emt 0:07:51]} 6. b3 {[%emt 0:09:20]} Nf6 {[%emt 0:01:24]} 7. Nbd2 {[%emt 0:01:45]} h6 {[%emt 0:02:51]} 8. h3 {[%emt 0:01:05]} e6 {[%emt 0:00:11]} 9. Be2 {[%emt 0:03:00]} cxd4 {[%emt 0:02:46]} 10. exd4 {[%emt 0:04:18]} Ba3 {[%emt 0:00:57]} 11. g4 {[%emt 0:02:48]} Bh7 {[%emt 0:05:13]} 12. g5 {[%emt 0:04:54]} hxg5 {[%emt 0:00:21]} 13. Nxg5 {[%emt 0:00:21]} Bf5 {[%emt 0:00:31]} 14. Ndf3 {[%emt 0:04:16]} Bb2 {[%emt 0:00:18]} 15. Rc1 {[%emt 0:00:05]} Bxc1 {[%emt 0:00:43]} 16. Qxc1 {[%emt 0:00:08]} Rc8 {[%emt 0:01:31]} 17. Qe3 {[%emt 0:02:44]} Ng4 {[%emt 0:10:14]} 18. hxg4 {[%emt 0:03:42]} Rxh1+ {[%emt 0:00:09]} 19. Kd2 {[%emt 0:00:14]} Be4 {[%emt 0:03:48]} 20. Nxe4 {[%emt 0:03:14]} dxe4 {[%emt 0:00:11]} 21. Qxe4 {[%emt 0:00:07]} Qa5 {[%emt 0:00:36]} 22. a4 {[%emt 0:06:45]} Qd5 {[%emt 0:02:50]} 23. Ng5 {[%emt 0:00:31]} Rh4 {[%emt 0:17:04]} 24. Bc4 {[%emt 0:07:25]} Qxe4 {[%emt 0:01:06]} 25. Nxe4 {[%emt 0:00:04]} Rxg4 {[%emt 0:00:32]} 26. Ke3 {[%emt 0:00:30]} Ke7 {[%emt 0:04:39]} 27. Be2 {[%emt 0:04:45]} Rg1 {[%emt 0:01:15]} 28. Nd6 {[%emt 0:04:14]} Rb8 {[%emt 0:00:21]} 29. Bf3 {[%emt 0:01:06]} f6 {[%emt 0:06:47]} 30. Bh2 {[%emt 0:02:26]} Rb1 {[%emt 0:04:24]} 31. b4 {[%emt 0:01:22]} e5 {[%emt 0:05:41]} 32. dxe5 {[%emt 0:06:51]} Nxe5 {[%emt 0:01:15]} 33. Bxe5 {[%emt 0:00:40]} fxe5 {[%emt 0:00:05]} 34. Nb5 {[%emt 0:00:42]} a6 {[%emt 0:00:25]} 35. Nc7 {[%emt 0:00:08]} Kd6 {[%emt 0:01:20]} 36. Nd5 {[%emt 0:00:04]} Rf8 {[%emt 0:01:09]} 37. Nb6 {[%emt 0:01:07]} Rxf3+ {[%emt 0:07:24]} 38. Kxf3 {[%emt 0:00:05]} Rb3 {[%emt 0:00:04]} 39. Nc4+ {[%emt 0:00:05]} Ke6 {[%emt 0:00:05]} 0-1

[Event "1st Lasker Memorial GM 2019"]
[Site "Anogia"]
[Date "2019.09.14"]
[Round "4.4"]
[White "Alexakis, Dimitrios"]
[Black "Beerdsen, Thomas"]
[Result "0-1"]
[ECO "B47"]
[WhiteElo "2077"]
[BlackElo "2482"]
[Annotator "ChessBase"]
[PlyCount "56"]
[EventDate "2019.09.11"]
[EventType "tourn"]
[EventCountry "GRE"]
[SourceTitle "playchess.com"]
[Source "ChessBase"]
[SourceQuality "1"]
[TimeControl "40/5400+30:1800+30"]

1. e4 {[%emt 0:09:18]} c5 {[%emt 0:00:00]} 2. Nf3 {[%emt 0:00:05]} e6 {[%emt 0:00:00]} 3. d4 {[%emt 0:00:44]} cxd4 {[%emt 0:00:00]} 4. Nxd4 {[%emt 0:00:02]} Nc6 {[%emt 0:00:00]} 5. Nc3 {[%emt 0:00:15]} Qc7 {[%emt 0:00:00]} 6. Qd3 {[%emt 0:01:13]} Nf6 {[%emt 0:00:45]} 7. Ndb5 {[%emt 0:00:05]} Qb8 {[%emt 0:00:04]} 8. Qg3 {[%emt 0:00:03]} d6 {[%emt 0:00:04]} 9. Be3 {[%emt 0:00:04]} a6 {[%emt 0:00:04]} 10. Nd4 {[%emt 0:00:02]} Be7 {[%emt 0:00:23]} 11. Be2 {[%emt 0:09:25]} Bd7 {[%emt 0:13:11]} 12. f4 {[%emt 0:34:40]} O-O {[%emt 0:06:10]} 13. O-O-O {[%emt 0:09:28]} b5 {[%emt 0:09:08]} 14. e5 {[%emt 0:02:08]} dxe5 {[%emt 0:11:50]} 15. Nxc6 {[%emt 0:13:20]} Bxc6 {[%emt 0:00:06]} 16. fxe5 {[%emt 0:00:04]} Ne4 {[%emt 0:03:02]} 17. Nxe4 {[%emt 0:00:38]} Bxe4 {[%emt 0:00:06]} 18. Bd3 {[%emt 0:04:15]} Qb7 {[%emt 0:03:25]} 19. Bxe4 {[%emt 0:07:55]} Qxe4 {[%emt 0:00:07]} 20. Rd4 {[%emt 0:00:06]} Qf5 {[%emt 0:00:17]} 21. Rf4 {[%emt 0:03:47]} Qh5 {[%emt 0:05:55]} 22. Rg4 {[%emt 0:01:03]} g6 {[%emt 0:00:06]} 23. Re1 {[%emt 0:01:36]} Rac8 {[%emt 0:01:37]} 24. c3 {[%emt 0:01:05]} Qf5 {[%emt 0:03:04]} 25. Qf4 {[%emt 0:00:34]} b4 {[%emt 0:08:56]} 26. c4 {[%emt 0:00:26]} Rfd8 {[%emt 0:00:13]} 27. Re2 {[%emt 0:00:30]} Rxc4+ {[%emt 0:00:32]} 28. Qxc4 {[%emt 0:00:24]} Qf1+ {[%emt 0:00:04]} 0-1

[Event "1st Lasker Memorial GM 2019"]
[Site "Anogia"]
[Date "2019.09.14"]
[Round "4.5"]
[White "Nikolaidis, Ioannis"]
[Black "Rozentalis, Eduardas"]
[Result "1/2-1/2"]
[ECO "E18"]
[WhiteElo "2530"]
[BlackElo "2533"]
[Annotator "ChessBase"]
[PlyCount "29"]
[EventDate "2019.09.11"]
[EventType "tourn"]
[EventCountry "GRE"]
[SourceTitle "playchess.com"]
[Source "ChessBase"]
[SourceQuality "1"]
[TimeControl "40/5400+30:1800+30"]

1. Nf3 {[%emt 0:05:01]} Nf6 {[%emt 0:00:00]} 2. c4 {[%emt 0:00:21]} e6 {[%emt 0:00:00]} 3. d4 {[%emt 0:00:46]} b6 {[%emt 0:00:01]} 4. g3 {[%emt 0:00:30]} Bb7 {[%emt 0:00:04]} 5. Bg2 {[%emt 0:00:07]} Be7 {[%emt 0:00:05]} 6. O-O {[%emt 0:00:08]} O-O {[%emt 0:00:04]} 7. Nc3 {[%emt 0:01:10]} Ne4 {[%emt 0:00:16]} 8. Bd2 {[%emt 0:00:17]} Bf6 {[%emt 0:01:42]} 9. Rc1 {[%emt 0:02:46]} d6 {[%emt 0:03:04]} 10. d5 {[%emt 0:00:20]} Bxc3 {[%emt 0:01:03]} 11. Bxc3 {[%emt 0:00:10]} Nxc3 {[%emt 0:00:02]} 12. Rxc3 {[%emt 0:00:19]} e5 {[%emt 0:00:02]} 13. Nd2 {[%emt 0:00:30]} Nd7 {[%emt 0:03:06]} 14. f4 {[%emt 0:00:27]} exf4 {[%emt 0:05:24]} 15. gxf4 {[%emt 0:00:40]} 1/2-1/2

[Event "1st Lasker Memorial GM 2019"]
[Site "Anogia"]
[Date "2019.09.15"]
[Round "5.1"]
[White "Rozentalis, Eduardas"]
[Black "Avramidou, Anastasia"]
[Result "1-0"]
[ECO "C07"]
[WhiteElo "2533"]
[BlackElo "2249"]
[Annotator "ChessBase"]
[PlyCount "107"]
[EventDate "2019.09.11"]
[EventType "tourn"]
[EventCountry "GRE"]
[SourceTitle "playchess.com"]
[Source "ChessBase"]
[SourceQuality "1"]
[TimeControl "40/5400+30:1800+30"]

1. e4 {[%emt 0:00:00]} e6 {[%emt 0:04:30]} 2. d4 {[%emt 0:00:00]} d5 {[%emt 0:00:07]} 3. Nd2 {[%emt 0:00:29]} c5 {[%emt 0:00:11]} 4. Ngf3 {[%emt 0:00:37]} cxd4 {[%emt 0:00:12]} 5. exd5 {[%emt 0:03:18]} Qxd5 {[%emt 0:05:56]} 6. Bc4 {[%emt 0:00:21]} Qd8 {[%emt 0:00:54]} 7. O-O {[%emt 0:01:34]} Bd6 {[%emt 0:04:07]} 8. Ne4 {[%emt 0:04:01]} Nc6 {[%emt 0:02:47]} 9. c3 {[%emt 0:04:42]} Nf6 {[%emt 0:06:25]} 10. Nxf6+ {[%emt 0:06:07]} Qxf6 {[%emt 0:00:24]} 11. cxd4 {[%emt 0:00:12]} O-O {[%emt 0:03:57]} 12. Bg5 {[%emt 0:05:22]} Qg6 {[%emt 0:01:36]} 13. Re1 {[%emt 0:00:58]} Qh5 {[%emt 0:09:17]} 14. h3 {[%emt 0:11:38]} h6 {[%emt 0:01:26]} 15. Bd2 {[%emt 0:03:31]} b6 {[%emt 0:11:28]} 16. Re4 {[%emt 0:08:41]} Qf5 {[%emt 0:07:08]} 17. Bd3 {[%emt 0:04:59]} Qf6 {[%emt 0:00:28]} 18. Bc3 {[%emt 0:02:09]} Qd8 {[%emt 0:04:58]} 19. Bc2 {[%emt 0:06:05]} Ne7 {[%emt 0:04:24]} 20. Qd3 {[%emt 0:00:59]} f5 {[%emt 0:00:28]} 21. Ree1 {[%emt 0:01:12]} Nd5 {[%emt 0:00:18]} 22. Bb3 {[%emt 0:03:36]} Bc7 {[%emt 0:07:09]} 23. Bd2 {[%emt 0:05:42]} Qd7 {[%emt 0:02:18]} 24. Ne5 {[%emt 0:13:49]} Bxe5 {[%emt 0:00:06]} 25. Bxd5 {[%emt 0:00:24]} Bh2+ {[%emt 0:04:06]} 26. Kxh2 {[%emt 0:00:12]} Qxd5 {[%emt 0:00:05]} 27. Re5 {[%emt 0:00:13]} Qd7 {[%emt 0:00:45]} 28. Qg3 {[%emt 0:03:10]} Rf6 {[%emt 0:06:13]} 29. d5 {[%emt 0:00:09]} Bb7 {[%emt 0:00:31]} 30. Bc3 {[%emt 0:00:19]} exd5 {[%emt 0:04:09]} 31. Bd4 {[%emt 0:00:58]} f4 {[%emt 0:00:54]} 32. Qa3 {[%emt 0:01:47]} Re6 {[%emt 0:03:40]} 33. Rae1 {[%emt 0:00:15]} Rae8 {[%emt 0:00:06]} 34. Rxe6 {[%emt 0:00:39]} Rxe6 {[%emt 0:00:04]} 35. Rxe6 {[%emt 0:00:12]} Qxe6 {[%emt 0:00:04]} 36. Qxa7 {[%emt 0:00:16]} Qe4 {[%emt 0:04:20]} 37. Qxb6 {[%emt 0:02:33]} f3 {[%emt 0:00:03]} 38. g3 {[%emt 0:04:28]} Bc8 {[%emt 0:00:57]} 39. Qa7 {[%emt 0:02:29]} Bd7 {[%emt 0:00:23]} 40. Qb8+ {[%emt 0:00:00]} Kh7 {[%emt 0:00:00]} 41. Qe5 {[%emt 0:01:05]} Qxe5 {[%emt 0:02:20]} 42. Bxe5 {[%emt 0:00:05]} h5 {[%emt 0:00:04]} 43. g4 {[%emt 0:03:51]} hxg4 {[%emt 0:00:08]} 44. hxg4 {[%emt 0:00:04]} Bxg4 {[%emt 0:00:09]} 45. Kg3 {[%emt 0:00:04]} Bh5 {[%emt 0:07:20]} 46. a4 {[%emt 0:00:58]} Be8 {[%emt 0:00:05]} 47. a5 {[%emt 0:00:29]} Bb5 {[%emt 0:00:08]} 48. Kxf3 {[%emt 0:00:12]} g5 {[%emt 0:00:46]} 49. Ke3 {[%emt 0:00:16]} Bc4 {[%emt 0:01:53]} 50. Kd4 {[%emt 0:01:06]} Kg6 {[%emt 0:00:06]} 51. b3 {[%emt 0:01:28]} Bxb3 {[%emt 0:01:04]} 52. a6 {[%emt 0:00:12]} Ba4 {[%emt 0:00:57]} 53. Kc5 {[%emt 0:00:18]} Kf5 {[%emt 0:00:21]} 54. Bd4 {[%emt 0:01:19]} 1-0